fUSD/lending_fUSD_20260224
["ID","MTS","AMOUNT","RATE_DAILY","PERIOD"]
[406552407,1771936241923,-500.0,0.00013698,2]
[406552408,1771936241932,-500.0,0.00013698,2]
[406552409,1771936241941,-500.0,0.00013698,2]
[406552410,1771936241950,-500.0,0.00013698,2]
[406552411,1771936241959,-500.0,0.00013698,2]
[406552412,1771936241969,-500.0,0.00013698,2]
[406552413,1771936241978,-500.0,0.00013698,2]
[406552414,1771936241987,-500.0,0.00013698,2]
[406552415,1771936241995,-500.0,0.00013698,2]
[406552416,1771936242005,-500.0,0.00013698,2]
[406552417,1771936242015,-500.0,0.00013698,2]
[406552418,1771936242024,-500.0,0.00013698,2]
[406552419,1771936242033,-1423.69,0.00013698,2]
[406552420,1771936242042,-1423.69,0.00013698,2]
[406552421,1771936242051,-1423.69,0.00013698,2]
[406552422,1771936242061,-1423.69,0.00013698,2]
[406552423,1771936242070,-1423.69,0.00013698,2]
[406552424,1771936242083,-1423.69,0.00013698,2]
[406552425,1771936242092,-1423.69,0.00013698,2]
[406552426,1771936242101,-1423.69,0.00013698,2]
[406552427,1771936242111,-1423.69,0.00013698,2]
[406552428,1771936242121,-1423.69,0.00013698,2]
[406552429,1771936242131,-1423.69,0.00013698,2]
[406552430,1771936242141,-1423.69,0.00013698,2]
[406552431,1771936242152,-1423.69,0.00013698,2]
[406552432,1771936242161,-1423.69,0.00013698,2]
[406552433,1771936242170,-1423.69,0.00013698,2]
[406552434,1771936242179,-1423.69,0.00013698,2]
[406552435,1771936242188,-523.24,0.00013698,2]
[406552436,1771936242197,-523.24,0.00013698,2]
[406552437,1771936242206,-523.24,0.00013698,2]
[406552438,1771936242215,-523.24,0.00013698,2]
[406552439,1771936242224,-523.24,0.00013698,2]
[406552440,1771936242234,-523.24,0.00013698,2]
[406552441,1771936242243,-523.24,0.00013698,2]
[406552442,1771936242251,-523.24,0.00013698,2]
[406552443,1771936242260,-523.24,0.00013698,2]
[406552444,1771936242269,-523.24,0.00013698,2]
[406552445,1771936242278,-523.24,0.00013698,2]
[406552446,1771936242287,-523.24,0.00013698,2]
[406552447,1771936242296,-523.24,0.00013698,2]
[406552448,1771936242305,-523.24,0.00013698,2]
[406552449,1771936242318,-500.0,0.00013698,2]
[406552450,1771936242327,-500.0,0.00013698,2]
[406552451,1771936242336,-500.0,0.00013698,2]
[406552452,1771936242345,-500.0,0.00013698,2]
[406552453,1771936242354,-500.0,0.00013698,2]
[406552454,1771936242363,-500.0,0.00013698,2]
[406552455,1771936242372,-500.0,0.00013698,2]
[406552456,1771936242381,-500.0,0.00013698,2]
[406552457,1771936242390,-500.0,0.00013698,2]
[406552458,1771936242399,-500.0,0.00013698,2]
[406552459,1771936242409,-500.0,0.00013698,2]
[406552460,1771936242418,-500.0,0.00013698,2]
[406552461,1771936242427,-500.0,0.00013698,2]
[406552462,1771936242435,-500.0,0.00013698,2]
[406552463,1771936242444,-222.44569411,0.00013698,2]
[406552464,1771936242453,-858.26,0.00013698,2]
[406552465,1771936242462,-858.26,0.00013698,2]
[406552466,1771936242471,-858.26,0.00013698,2]
[406552467,1771936242480,-858.26,0.00013698,2]
[406552468,1771936242489,-858.26,0.00013698,2]
[406552469,1771936242498,-858.26,0.00013698,2]
[406552470,1771936242508,-858.26,0.00013698,2]
[406552471,1771936242517,-858.26,0.00013698,2]
[406552472,1771936242526,-858.26,0.00013698,2]
[406552473,1771936242535,-858.26,0.00013698,2]
[406552474,1771936242544,-858.26,0.00013698,2]
[406552475,1771936242553,-858.26,0.00013698,2]
[406552476,1771936242562,-858.26,0.00013698,2]
[406552477,1771936242571,-858.26,0.00013698,2]
[406552478,1771936242581,-500.0,0.00013698,2]
[406552479,1771936242590,-500.0,0.00013698,2]
[406552480,1771936242599,-500.0,0.00013698,2]
[406552482,1771936242608,-500.0,0.00013698,2]
[406552483,1771936242618,-500.0,0.00013698,2]
[406552484,1771936242627,-500.0,0.00013698,2]
[406552485,1771936242636,-500.0,0.00013698,2]
[406552486,1771936242646,-500.0,0.00013698,2]
[406552487,1771936242655,-500.0,0.00013698,2]
[406552488,1771936242664,-500.0,0.00013698,2]
[406552490,1771936242674,-500.0,0.00013698,2]
[406552492,1771936242682,-500.0,0.00013698,2]
[406552493,1771936242691,-500.0,0.00013698,2]
[406552495,1771936242701,-500.0,0.00013698,2]
[406552497,1771936242710,-425.41241493,0.00013698,2]
[406552499,1771936242719,-500.0,0.00013699,2]
[406552500,1771936242728,-500.0,0.00013699,2]
[406552501,1771936242738,-162.13031906,0.00013699,2]
[406552502,1771936242747,-509.0327441,0.00013699,2]
[406552503,1771936242756,-511.18624479,0.00013699,2]
[406552504,1771936242766,-504.16390705,0.00013699,2]
[406552505,1771936242775,-503.99220136,0.00013699,2]
[406552506,1771936242786,-164.16786887,0.00013699,2]
[406552507,1771936242795,-500.0,0.00013699,2]
[406552508,1771936242805,-500.0,0.00013699,2]
[406552509,1771936242815,-504.28462668,0.00013699,2]
[406552510,1771936242826,-500.0,0.00013699,2]
[406552511,1771936242835,-500.0,0.00013699,2]
[406552512,1771936242844,-500.0,0.00013699,2]
[406552513,1771936242853,-500.0,0.00013699,2]
[406552514,1771936242863,-503.3459029,0.00013699,2]
[406552515,1771936242872,-500.0,0.00013699,2]
[406552516,1771936242881,-304.38005979,0.00013699,2]
[406552517,1771936242890,-500.0,0.00013699,2]
[406552518,1771936242900,-503.60394883,0.00013699,2]
[406552519,1771936242909,-500.0,0.00013699,2]
[406552520,1771936242919,-487.94127816,0.00013699,2]
[406552521,1771936242928,-500.0,0.00013699,2]
[406552522,1771936242937,-500.0,0.00013699,2]
[406552523,1771936242947,-500.0,0.00013699,2]
[406552524,1771936242955,-501.93759306,0.00013699,2]
[406552525,1771936242965,-500.0,0.00013699,2]
[406552526,1771936242975,-209.6165406,0.00013699,2]
[406552527,1771936242985,-500.0,0.00013699,2]
[406552528,1771936242996,-500.0,0.00013699,2]
[406552529,1771936243005,-186.88471708,0.00013699,2]
[406552530,1771936243014,-170.38160206,0.00013699,2]
[406552531,1771936243024,-168.61283304,0.00013699,2]
[406552532,1771936243033,-599.206441,0.00013699,2]
[406552533,1771936243043,-501.44667058,0.00013699,2]
[406552534,1771936243052,-215.42973367,0.000137,2]
[406552535,1771936243061,-150.0,0.00013719,2]
[406552536,1771936243070,-291.85083956,0.00013786,2]
[406552537,1771936243083,-4697.42439603,0.00013878,2]
[406552538,1771936243093,-1252.0,0.00013964,2]
[406552539,1771936243103,-1152.0,0.00013965,2]
[406552540,1771936243112,-4609.0,0.00013965,2]
[406552541,1771936243124,-2574.69084,0.00014021,7]
[406552542,1771936243133,-1276.82336401,0.00014168,2]
[406552543,1771936243143,-871.93707751,0.00014168,2]
[406552544,1771936243152,-1500.0,0.00014168,2]
[406552545,1771936243161,-1500.0,0.00014168,2]
[406552546,1771936243171,-1500.0,0.00014168,2]
[406552547,1771936243180,-527.71923747,0.00014168,2]
[406552548,1771936243189,-1500.0,0.00014168,2]
[406552549,1771936243199,-500.0,0.00014247,2]
[406552550,1771936243208,-501.53221813,0.00014247,2]
[406552551,1771936243218,-1000.0,0.00014247,2]
[406552552,1771936243227,-1000.0,0.00014247,2]
[406552553,1771936243236,-1000.0,0.00014247,2]
[406552554,1771936243245,-1028.84101903,0.00014247,2]
[406552555,1771936243254,-436.95947364,0.00014247,2]
[406552556,1771936243263,-1092.86766843,0.00014247,2]
[406552557,1771936243273,-483.17728486,0.00014247,2]
[406552558,1771936243283,-1000.0,0.00014247,2]
[406552559,1771936243292,-583.60061699,0.00014247,2]
[406552560,1771936243301,-1000.0,0.00014247,2]
[406552561,1771936243310,-243.69912151,0.00014247,2]
[406552562,1771936243319,-1000.0,0.00014247,2]
[406552563,1771936243328,-1000.0,0.00014247,2]
[406552564,1771936243337,-1000.0,0.00014247,2]
[406552565,1771936243346,-502.25935248,0.00014247,2]
[406552566,1771936243355,-3307.110349,0.0001425,7]
[406552567,1771936243364,-31092.68361968,0.00014292,2]
[406552568,1771936243374,-10357.55636516,0.0001439,2]
[406552569,1771936243383,-27376.86086096,0.00014497,2]
[406552570,1771936243392,-151.0,0.00014634,2]
[406552571,1771936243402,-151.0,0.00014634,2]
[406552572,1771936243410,-151.0,0.00014634,2]
[406552573,1771936243419,-151.0,0.00014634,2]
[406552574,1771936243428,-2000.0,0.00014716,2]
[406552575,1771936243438,-2000.0,0.00014716,2]
[406552576,1771936243446,-2000.0,0.00014716,2]
[406552577,1771936243456,-503.87713345,0.00014716,2]
[406552578,1771936243465,-5293.47,0.00014777,2]
[406552579,1771936243474,-150.0,0.00014794,2]
[406552580,1771936243484,-1390.05507377,0.00014795,2]
[406552581,1771936243493,-1500.0,0.00014795,2]
[406552582,1771936243502,-1500.0,0.00014795,2]
[406552583,1771936243511,-602.53164684,0.00014795,2]
[406552584,1771936243520,-1500.0,0.00014795,2]
[406552585,1771936243530,-1500.0,0.00014795,2]
[406552586,1771936243539,-1500.0,0.00014795,2]
[406552587,1771936243548,-193.71551848,0.00014795,2]
[406552588,1771936243557,-150.0,0.00014795,2]
[406552590,1771936243566,-150.0,0.00014796,2]
[406552592,1771936243575,-150.0,0.00014797,2]
[406552594,1771936243585,-150.0,0.00014798,2]
[406552596,1771936243594,-150.0,0.00014799,2]
[406552598,1771936243603,-150.0,0.000148,2]
[406552600,1771936243612,-150.0,0.00014801,2]
[406552602,1771936243621,-150.0,0.00014802,2]
[406552603,1771936243630,-150.0,0.00014803,2]
[406552604,1771936243638,-150.0,0.00014804,2]
[406552605,1771936243647,-150.0,0.00014805,2]
[406552606,1771936243656,-206.290511,0.00014806,2]
[406552607,1771936243666,-694.7,0.00014853,2]
[406552608,1771936243675,-176.18400318,0.000149,2]
[406552609,1771936243684,-500.0,0.0001498,4]
[406552610,1771936243694,-512.1,0.00014986,2]
[406552611,1771936243703,-500.0,0.00014986,2]
[406552612,1771936243712,-566.19,0.00014986,2]
[406552613,1771936243721,-591.67,0.00014986,2]
[406552614,1771936243731,-500.0,0.00014986,2]
[406552615,1771936243740,-917.0,0.00014986,2]
[406552616,1771936243749,-500.0,0.00014986,2]
[406552617,1771936243758,-523.24,0.00014986,2]
[406552618,1771936243767,-858.26,0.00014986,2]
[406552619,1771936243777,-250.0,0.00015,2]
[406552620,1771936243786,-2057.23131483,0.00015,2]
[406552621,1771936243795,-18027.12324089,0.00015,7]
[406552622,1771936243805,-8008.97204016,0.00015,2]
[406552623,1771936243815,-140439.56128328,0.0001512,2]
[406552624,1771936243824,-31092.68361968,0.00015242,2]
[406552625,1771936243833,-2500.0,0.00015264,2]
[406552626,1771936243846,-374.73958587,0.00015264,2]
[406552627,1771936243855,-2500.0,0.00015264,2]
[406552628,1771936243864,-1517.64,0.000153,2]
[406552629,1771936243873,-27376.86086096,0.00015323,2]
[406552630,1771936243883,-503.05357398,0.00015342,2]
[406552631,1771936243892,-2000.0,0.00015342,2]
[406552632,1771936244058,-1255.82806005,0.00015342,2]
[406552633,1771936244069,-932.65135931,0.00015342,2]
[406552634,1771936244081,-1613.0,0.00015362,2]
[406552635,1771936244090,-6453.0,0.00015362,2]
[406552636,1771936244100,-2129.0,0.00015367,2]
[406552637,1771936244108,-510.0565306,0.000154,2]
[406552638,1771936244119,-10016.0,0.000155,2]
[406552639,1771936244128,-173.87087054,0.00015522,2]
[406552640,1771936244138,-549.94,0.00015524,2]
[406552641,1771936244148,-657.39,0.00015524,2]
[406552642,1771936244157,-1423.69,0.00015524,2]
[406552643,1771936244166,-160.0,0.00015524,2]
[406552644,1771936244175,-2247.75609779,0.00015807,2]
[406552645,1771936244184,-3000.0,0.00015812,2]
[406552646,1771936244194,-877.20909449,0.00015812,2]
[406552647,1771936244203,-1200.21212036,0.0001589,2]
[406552648,1771936244213,-461.85,0.00015894,2]
[406552649,1771936244222,-380.32235674,0.00016,2]
[406552650,1771936244231,-419.22118993,0.00016,2]
[406552651,1771936244240,-150.0,0.00016016,2]
[406552652,1771936244250,-461.85,0.00016053,2]
[406552653,1771936244260,-2725.04997657,0.00016092,2]
[406552654,1771936244270,-380.32235674,0.000161,2]
[406552655,1771936244280,-9999.99,0.00016116,2]
[406552656,1771936244289,-27376.86086096,0.00016149,2]
[406552657,1771936244299,-31092.68361968,0.00016192,2]
[406552658,1771936244309,-27500.03877492,0.000162,5]
[406552659,1771936244318,-380.32235674,0.000162,2]
[406552660,1771936244327,-461.85,0.00016212,2]
[406552661,1771936244336,-778.04,0.00016213,2]
[406552662,1771936244345,-454.1749961,0.00016236,2]
[406552663,1771936244354,-200.0,0.0001634,2]
[406552664,1771936244363,-3500.0,0.0001636,2]
[406552665,1771936244373,-461.85,0.00016371,2]
[406552666,1771936244382,-454.1749961,0.00016397,2]
[406552667,1771936244391,-20000.0,0.00016438,2]
[406552668,1771936244400,-150.73989367,0.00016438,2]
[406552669,1771936244410,-778.04,0.00016487,2]
[406552670,1771936244419,-461.85,0.0001653,2]
[406552671,1771936244428,-454.1749961,0.00016558,2]
[406552672,1771936244438,-361.85708907,0.000166,2]
[406552673,1771936244447,-461.89325126,0.00016689,2]
[406552674,1771936244456,-167.31,0.00016712,2]
[406552675,1771936244465,-2258.0,0.00016898,2]
[406552676,1771936244476,-9035.0,0.00016898,2]
[406552677,1771936244485,-3151.0,0.00016902,2]
[406552678,1771936244495,-620.70979822,0.00016908,2]
[406552679,1771936244504,-27376.86086096,0.00016975,2]
[406552680,1771936244514,-300.0,0.00017,2]
[406552681,1771936244524,-404976.30869257,0.00017,2]
[406552682,1771936244533,-31092.68361968,0.00017142,2]
[406552683,1771936244542,-2039.3747218,0.000175,3]
[406552684,1771936244552,-800.0,0.00017808,2]
[406552685,1771936244561,-1005.12410844,0.0001786,2]
[406552686,1771936244570,-500.0,0.000179,6]
[406552687,1771936244579,-515.52777327,0.000179,2]
[406552688,1771936244589,-346.04380865,0.0001799,2]
[406552689,1771936244598,-2531343.74416034,0.00018,2]
[406552690,1771936244824,-159286.96827876,0.00018,2]
[406552691,1771936244833,-299794.56793696,0.00018,2]
[406552692,1771936245115,-275.00009999,9.539e-05,2]
[406552693,1771936245126,-224.99990001,9.539e-05,2]
[406552694,1771936245135,-1036.80857259,0.00018,2]
[406552695,1771936245478,-33110.0,0.00018,2]
[406552696,1771936245564,-1012.19947126,0.00018,2]
[406552697,1771936245575,-2818.88970174,0.00018,2]
[406552698,1771936246044,-18025.80289443,0.00018,2]
[406552699,1771936246079,-1135.37839359,0.00018,2]
[406552941,1771936260427,5000.01,9.541e-05,2]
[406552942,1771936260453,10000.01,9.541e-05,2]
[406552943,1771936260477,10000.01,9.541e-05,2]
[406552944,1771936260502,10000.01,9.541e-05,2]
[406552945,1771936260525,10000.01,9.541e-05,2]
[406552946,1771936260549,10000.01,9.541e-05,2]
[406552947,1771936267619,5000.01,7.945e-05,2]
[406552948,1771936267644,2249.301848,7.945e-05,2]
[406552949,1771936268410,-10000.01,9.541e-05,2]
[406552950,1771936268545,-10000.01,9.541e-05,2]
[406552951,1771936268654,-10000.01,9.541e-05,2]
[406552952,1771936268756,-10000.01,9.541e-05,2]
[406552953,1771936268858,-10000.01,9.541e-05,2]
[406552954,1771936268887,4515.90685154,9.441e-05,2]
[406552955,1771936281045,484.10314846,9.441e-05,2]
[406552957,1771936283484,-966.5785543,9.441e-05,2]
[406552958,1771936292928,262.586,9.35e-05,2]
[406552959,1771936292970,2804.2668914,9.35e-05,2]
[406552960,1771936294627,558.2,7.9e-05,2]
[406552961,1771936295444,-478.1541086,9.35e-05,2]
[406552962,1771936312040,1792.648877,9.491e-05,2]
[406552963,1771936578419,-1200.0,9.539e-05,2]
[406552964,1771936578445,-300.0,9.539e-05,2]
[406552967,1771936748898,-250.0,9.54e-05,2]
[406552975,1771936907550,-314.06541696,9.54e-05,2]
[406552976,1771936907580,-229.0,9.54e-05,2]
[406552977,1771936907608,-1000.0,9.541e-05,2]
[406552978,1771936907636,-250.0,9.626e-05,2]
[406552979,1771936907665,-151.499265,9.969e-05,2]
[406552980,1771936907693,-150.0,9.999e-05,2]
[406552981,1771936907720,-1200.0,9.999e-05,2]
[406552982,1771936907747,-300.0,9.999e-05,2]
[406552983,1771936907773,-151.0,0.0001,2]
[406552984,1771936907800,-151.0,0.0001,2]
[406552985,1771936907827,-151.0,0.0001,2]
[406552986,1771936907855,-151.0,0.0001,2]
[406552987,1771936907882,-151.0,0.0001,2]
[406552988,1771936907910,-151.0,0.0001,2]
[406552989,1771936907938,-151.0,0.0001,2]
[406552990,1771936907966,-151.0,0.0001,2]
[406552991,1771936907994,-151.0,0.0001,2]
[406552992,1771936908268,-151.0,0.0001,2]
[406552993,1771936908298,-151.0,0.0001,2]
[406552994,1771936908325,-151.0,0.0001,2]
[406552995,1771936908353,-151.0,0.0001,2]
[406552996,1771936908380,-151.0,0.0001,2]
[406552997,1771936908407,-151.0,0.0001,2]
[406552998,1771936908436,-151.0,0.0001,2]
[406552999,1771936908678,-151.0,0.0001,2]
[406553000,1771936908705,-151.0,0.0001,2]
[406553001,1771936908731,-151.0,0.0001,2]
[406553002,1771936908757,-151.0,0.0001,2]
[406553003,1771936908785,-199.03984276,0.0001,2]
[406553004,1771936908811,-275.0,0.0001,2]
[406553005,1771936908840,-869.38,0.0001,2]
[406553006,1771936908869,-275.0,0.00010102,2]
[406553007,1771936922235,150.0,0.00010223,2]
[406553008,1771936936382,151.0,0.0001,2]
[406553009,1771936937014,151.0,0.0001,2]
[406553010,1771936937614,151.0,0.0001,2]
[406553011,1771936938207,151.0,0.0001,2]
[406553012,1771936938816,151.0,0.0001,2]
[406553013,1771936939446,151.0,0.0001,2]
[406553014,1771936940064,151.0,0.0001,2]
[406553015,1771936940679,151.0,0.0001,2]
[406553016,1771936941322,151.0,0.0001,2]
[406553017,1771936942118,151.0,0.0001,2]
[406553018,1771936942550,151.0,0.0001,2]
[406553019,1771936943222,151.0,0.0001,2]
[406553020,1771936943891,151.0,0.0001,2]
[406553021,1771936944634,151.0,0.0001,2]
[406553022,1771936945158,275.2704529,0.0001,2]
[406553024,1771936981521,300.0,0.00010223,2]
[406553025,1771937082607,500.0,0.00010164,2]
[406553026,1771937101607,101.89986158,0.00010223,2]
[406553027,1771937101629,1098.10013842,0.00010223,2]
[406553028,1771937103108,150.0,0.00010223,2]
[406553029,1771937111176,8751.90986158,0.00010211,2]
[406553030,1771937111198,10000.01,0.00010211,2]
[406553031,1771937111219,9378.90013842,0.00010211,2]
[406553032,1771937125501,621.10986158,0.00010124,2]
[406553033,1771937125522,584.80033842,0.00010124,2]
[406553037,1771937147260,9415.20966158,0.00010211,2]
[406553038,1771937147283,4.34033842,0.00010211,2]
[406553045,1771937161721,300.0,0.00010223,2]
[406553046,1771937174554,500.0,0.00010124,2]
[406553047,1771937194476,9195.66966158,0.00010124,2]
[406553048,1771937194499,10000.01,0.00010124,2]
[406553049,1771937194525,10000.01,0.00010124,2]
[406553050,1771937194548,10000.01,0.00010124,2]
[406553051,1771937194571,10000.01,0.00010124,2]
[406553052,1771937194593,10000.01,0.00010124,2]
[406553053,1771937194616,10000.01,0.00010124,2]
[406553054,1771937194638,10000.01,0.00010124,2]
[406553055,1771937194660,10000.01,0.00010124,2]
[406553056,1771937210730,-4924.83968552,0.00010124,2]
[406553057,1771937210833,-10000.01,0.00010124,2]
[406553058,1771937210958,-10000.01,0.00010124,2]
[406553059,1771937211080,-10000.01,0.00010124,2]
[406553060,1771937211186,-10000.01,0.00010124,2]
[406553061,1771937211344,-10000.01,0.00010124,2]
[406553062,1771937211504,-10000.01,0.00010124,2]
[406553063,1771937211618,-10000.01,0.00010124,2]
[406553064,1771937213522,-10000.01,0.00010124,2]
[406553065,1771937213733,-10000.01,0.00010124,2]
[406553066,1771937225590,-300.0,0.00010123,2]
[406553067,1771937225626,-9400.01,0.00010124,2]
[406553068,1771937225690,-10000.01,0.00010124,2]
[406553069,1771937225939,-10000.01,0.00010124,2]
[406553070,1771937226039,-10000.01,0.00010124,2]
[406553071,1771937226159,-10000.01,0.00010124,2]
[406553072,1771937226292,-10000.01,0.00010124,2]
[406553073,1771937226397,-10000.01,0.00010124,2]
[406553074,1771937226505,-10000.01,0.00010124,2]
[406553075,1771937226943,166.0,0.00010124,3]
[406553076,1771937227618,824.998639,7.945e-05,2]
[406553077,1771937231604,-10000.01,0.00010124,2]
[406553078,1771937231805,-10000.01,0.00010124,2]
[406553079,1771937231959,-10000.01,0.00010124,2]
[406553080,1771937232090,-10000.01,0.00010124,2]
[406553081,1771937232199,-10000.01,0.00010124,2]
[406553082,1771937232531,-10000.01,0.00010124,2]
[406553083,1771937232548,-10000.01,0.00010124,2]
[406553084,1771937232586,-10000.01,0.00010124,2]
[406553087,1771937237558,-10000.01,0.00010124,2]
[406553088,1771937237667,-10000.01,0.00010124,2]
[406553089,1771937237778,-10000.01,0.00010124,2]
[406553090,1771937237892,-10000.01,0.00010124,2]
[406553091,1771937238024,-10000.01,0.00010124,2]
[406553092,1771937238121,-10000.01,0.00010124,2]
[406553093,1771937238220,-10000.01,0.00010124,2]
[406553094,1771937238336,-10000.01,0.00010124,2]
[406553095,1771937287619,158.0,0.00010124,3]
[406553096,1771937345955,150.0,0.00010124,3]
[406553097,1771937406388,150.0,0.00010124,3]
[406553103,1771937431607,-312.7,0.0001,2]
[406553104,1771937431619,-461.57,0.0001,2]
[406553105,1771937431628,-4205.90373644,0.0001,2]
[406553106,1771937431637,-1000.0,0.00010011,2]
[406553107,1771937431646,-300.0,0.00010023,2]
[406553108,1771937431655,-300.0,0.00010023,2]
[406553109,1771937431664,-1200.0,0.00010023,2]
[406553110,1771937431673,-500.0,0.00010024,2]
[406553111,1771937431682,-10000.0,0.00010024,2]
[406553112,1771937431691,-19816.0043,0.00010024,2]
[406553113,1771937431700,-7972.73428741,0.00010024,2]
[406553114,1771937431709,-767.64515322,0.00010024,2]
[406553115,1771937431718,-4436.34592398,0.00010024,2]
[406553116,1771937431727,-393.46869241,0.00010024,2]
[406553117,1771937431736,-5562.09619091,0.00010024,2]
[406553118,1771937431745,-12465.96567392,0.00010024,2]
[406553119,1771937431754,-519.29982816,0.00010114,2]
[406553120,1771937431763,-150.0,0.00010123,2]
[406553121,1771937431773,-1380860.88124189,0.00010124,2]
[406553122,1771937431784,-6761.77804338,0.00010124,2]
[406553123,1771937431795,-7201.21791156,0.00010124,2]
[406553124,1771937431806,-90966.74264877,0.00010124,2]
[406553125,1771937431833,-2382.46942602,0.00010124,2]
[406553126,1771937431844,-1597.05436718,0.00010124,2]
[406553128,1771937431854,-558.27538772,0.00010124,2]
[406553133,1771937437889,-1586150.66162638,0.00010124,2]
[406553134,1771937437899,-916.35022247,0.00010124,2]
[406553135,1771937437908,-920.81432704,0.00010124,2]
[406553136,1771937437917,-22500.03,0.00010186,2]
[406553137,1771937437926,-172785.3716798,0.00010224,2]
[406553138,1771937437935,-11631.79,0.00010248,2]
[406553139,1771937437944,-869.38,0.00010274,2]
[406553140,1771937437953,-2500.0,0.00010293,2]
[406553141,1771937437963,-8913.42,0.00010299,2]
[406553143,1771937437972,-519.29982816,0.00010383,2]
[406553145,1771937437980,-500.0,0.00010392,2]
[406553147,1771937437990,-500.0,0.00010392,2]
[406553148,1771937437999,-500.0,0.00010392,2]
[406553150,1771937438008,-500.0,0.00010392,2]
[406553152,1771937438017,-500.0,0.00010392,2]
[406553154,1771937438027,-500.0,0.00010392,2]
[406553156,1771937438036,-500.0,0.00010392,2]
[406553158,1771937438045,-533.44225609,0.00010392,2]
[406553159,1771937438054,-500.0,0.00010392,2]
[406553161,1771937438063,-500.0,0.00010392,2]
[406553163,1771937438073,-500.0,0.00010392,2]
[406553165,1771937438082,-500.0,0.00010392,2]
[406553167,1771937438091,-330247.4257,0.00010393,2]
[406553168,1771937438100,-869.38,0.00010548,2]
[406553169,1771937438109,-319.0,0.00010551,2]
[406553170,1771937438119,-396.0,0.00010572,2]
[406553172,1771937438128,-584.0,0.0001061,2]
[406553173,1771937438137,-1535.0,0.00010631,2]
[406553175,1771937438146,-357.0,0.00010698,2]
[406553177,1771937438155,-1000.0,0.000107,2]
[406553178,1771937438165,-19999.99,0.000107,2]
[406553179,1771937438174,-299.99,0.000107,2]
[406553180,1771937438183,-1413.37,0.000107,2]
[406553181,1771937438192,-9999.99,0.000107,2]
[406553182,1771937438201,-2273.707,0.000107,2]
[406553183,1771937438211,-183.0566,0.000107,2]
[406553184,1771937438220,-4999.99,0.000107,2]
[406553185,1771937438229,-150.99,0.000107,2]
[406553186,1771937438238,-509.44,0.000107,2]
[406553187,1771937438247,-1613.61,0.000107,2]
[406553188,1771937438255,-35000.07,0.000107,2]
[406553189,1771937438265,-9999.99,0.000107,2]
[406553191,1771937438274,-306.28,0.000107,2]
[406553192,1771937438283,-9999.99,0.000107,2]
[406553193,1771937438296,-499.99,0.000107,2]
[406553194,1771937438306,-3571.95,0.000107,2]
[406553195,1771937438315,-9999.99,0.000107,2]
[406553196,1771937438325,-1185.85,0.000107,2]
[406553197,1771937438334,-150.99,0.000107,2]
[406553198,1771937438344,-9999.99,0.000107,2]
[406553199,1771937438353,-9999.99,0.000107,2]
[406553200,1771937438363,-500.0,0.000107,2]
[406553201,1771937438372,-396.0,0.0001072,2]
[406553202,1771937438382,-488.0,0.00010741,2]
[406553203,1771937438394,-157.0,0.00010762,2]
[406553204,1771937438403,-1686.0,0.00010774,2]
[406553205,1771937438414,-359.0,0.00010784,2]
[406553206,1771937438423,-855.0,0.00010795,2]
[406553207,1771937438434,-500.0,0.000108,2]
[406553208,1771937438445,-962.60632274,0.000108,2]